Cogmind - Beta 16 @@@ ROGUE MODE // 2025.11.20 @ 12:11:43 Player: Demo Result: Destroyed by Executioner with Helical Railgun Performance ------------- Evolutions (8) 4000 Regions Visited (13) 2600 Robots Destroyed (113) 565 Value Destroyed (7509) 7509 Prototype IDs (96) 1920 Alien Tech Used (1) 200 Bonus (6180) 6180 TOTAL SCORE: 22974 Bonus ------- High Alert Combat Kills 3880 Entered DSFs 500 Registered with UFD 300 Met Optimus in HQ 500 Met Optimus at Protoforge 1000 Cogmind --------- Core Integrity 0/1450 Matter 285/300 Energy 600/600 System Corruption 12% Temperature Cool (0) Movement Flying (33) Location -2/Protoforge Parts ------- > --- POWER (2) -------- Improved Quantum Reactor (fused) Improved Quantum Reactor > --- PROPULSION (10) -- Impulse Thruster Array Impulse Thruster Array Impulse Thruster Array Impulse Thruster Array Impulse Thruster Array > --- UTILITY (9) ------ Nanoactuators Experimental Reaction Control System Experimental Cloaking Device Makeshift Medium Armor Plating > --- WEAPON (2) ------- Nanosword Experimental Jetlance > --- INVENTORY (5) ---- Improved Quantum Reactor Impulse Thruster Array Peak State ------------ > --- POWER ------------ Improved Quantum Reactor Improved Quantum Reactor > --- PROPULSION ------- Electron Diverter Electron Diverter Electron Diverter Electron Diverter Impulse Thruster Array Impulse Thruster Array Impulse Thruster Array > --- UTILITY ---------- Experimental Heat Sink Light Humpback Advanced Quantum Shading Machine Advanced Melee Analysis Suite Advanced Melee Analysis Suite Experimental Core Analyzer Nanoactuators Experimental Reaction Control System > --- WEAPON ----------- Sigix Broadsword > --- INVENTORY -------- Light Quantum Reactor Advanced Cooling System Advanced Cooling System Advanced Coolant Injector Quantum Capacitor Microactuators Stasis Canceller Improved Heavy Armor Plating Centrium Light Armor Plating Centrium Light Armor Plating Centrium Medium Armor Plating Medium Insulated Plating Nanosword UFD Drillbomb [Rating: 210] Favorites ----------- Power Improved Quantum Reactor Power Core Micro Fission Core Reactor Improved Quantum Reactor Propulsion Impulse Thruster Array Treads Light Treads Leg Armored Leg Wheel Armored Huge Wheel Hover Unit Gravmag Array Flight Unit Impulse Thruster Array Utility Advanced Melee Analysis Suite Device Microactuators Storage Light Humpback Processor Advanced Melee Analysis Suite Hackware Hacking Suite Protection Improved Utility Shielding Weapon Nanosword Energy Gun Backup Laser I Ballistic Gun Helical Railgun Slashing Weapon Nanosword Piercing Weapon Experimental Jetlance Build | -11 -10 -10 -10 -8 -8 -6 -5 -4 -4 -3 -2 -2 -2 ------- Run | Yrd Mat Min Sub Rec Scr Fac Fac Fac DSF Res Res Qua Frg Slots Evolved 16 | . . . . . . 8 2 2 . 2 2 . . Power 1 | . . . . . . . . . . . 1 . . Propulsion 8 | . . . . . . 8 . . . . . . . Utility 7 | . . . . . . . 2 2 . 2 1 . . Weapon . | . . . . . . . . . . . . . . Parts Attached 180 | 2 . . . . . 8 2 1 6 24 27 4 106 Power 29 | . . . . . . . . . 1 1 7 . 20 Engine . | . . . . . . . . . . . . . . Core 1 | . . . . . . . . . 1 . . . . Reactor 28 | . . . . . . . . . . 1 7 . 20 Propulsion 62 | 2 . . . . . 6 . 1 3 12 6 1 31 Treads 5 | 2 . . . . . . . . 3 . . . . Leg 2 | . . . . . . 2 . . . . . . . Wheel 1 | . . . . . . 1 . . . . . . . Hover 4 | . . . . . . 1 . 1 . 1 . . 1 Flight 50 | . . . . . . 2 . . . 11 6 1 30 Utility 78 | . . . . . . 2 2 . . 9 14 2 49 Device 31 | . . . . . . . . . . 3 6 1 21 Storage 2 | . . . . . . . . . . . . . 2 Processor 20 | . . . . . . 1 2 . . 2 7 1 7 Hackware 1 | . . . . . . 1 . . . . . . . Protection 24 | . . . . . . . . . . 4 1 . 19 Artifact . | . . . . . . . . . . . . . . Weapon 11 | . . . . . . . . . 2 2 . 1 6 Energy Gun 2 | . . . . . . . . . 2 . . . . Energy Cannon . | . . . . . . . . . . . . . . Ballistic Gun 3 | . . . . . . . . . . . . . 3 Ballistic Cannon . | . . . . . . . . . . . . . . Launcher . | . . . . . . . . . . . . . . Special Weapon . | . . . . . . . . . . . . . . Impact Weapon . | . . . . . . . . . . . . . . Slashing Weapon 3 | . . . . . . . . . . 2 . 1 . Piercing Weapon 3 | . . . . . . . . . . . . . 3 Special Melee Weapon . | . . . . . . . . . . . . . . Unidentified Prototypes 19 | . . . . . . . . . . 3 4 1 11 Parts Lost 58 | . . . . . . 8 . . 6 . . . 44 Power 6 | . . . . . . . . . . . . . 6 Propulsion 27 | . . . . . . 6 . . 1 . . . 20 Utility 22 | . . . . . . 2 . . 3 . . . 17 Weapon 3 | . . . . . . . . . 2 . . . 1 Highest Loss Streak 9 | . . . . . . 7 . . 6 . . . 9 To Critical Strikes 2 | . . . . . . . . . . . . . 2 Average Backups 4 | . . . . . . 2 5 5 4 4 3 4 5 Power . | . . . . . . . . . . . . . . Propulsion . | . . . . . . . . . . 1 1 1 . Utility 2 | . . . . . . 1 3 3 3 1 1 2 3 Weapon . | . . . . . . 1 2 2 1 . . . . Tool/Special . | . . . . . . . . . . . . . . Unused Backups 25 | . . . . . . . . . . 7 2 . 16 Power 2 | . . . . . . . . . . . 1 . 1 Propulsion 4 | . . . . . . . . . . 2 . . 2 Utility 18 | . . . . . . . . . . 4 1 . 13 Weapon 1 | . . . . . . . . . . 1 . . . Tool/Special . | . . . . . . . . . . . . . . Average Slot Usage (%) 67 | . 28 28 28 28 28 34 31 32 21 62 87 85 80 Reactor 5 | . . . . . . . . . . 3 7 8 7 Treads 3 | . 28 28 28 28 28 7 . . 1 1 . . . Flight 22 | . . . . . . 5 5 5 1 26 31 30 28 Device 8 | . . . . . . . . . . 5 12 13 12 Processor 10 | . . . . . . 2 13 15 7 7 15 17 12 Protection 7 | . . . . . . 4 . . . 9 9 8 10 Slashing Weapon 3 | . . . . . . . . . . 6 8 7 3 Piercing Weapon 1 | . . . . . . . . . . . . . 2 Peak Build Rating 210 | 2 2 2 2 2 2 40 23 30 31 141 176 186 210 Average Rating 133 | 1 2 2 2 2 2 20 21 24 16 89 163 177 186 On Entrance 42 | . 2 2 2 2 2 2 17 23 30 14 134 176 186 Avg Prop Armor Cover (%) 18 | 41 41 41 41 41 41 37 31 27 8 11 4 2 1 Naked Turns 8 | . . . . . . . . . 8 . . . . Heaviest Build 106 | . . . . . . 2 . . 5 35 51 54 106 Greatest Support 115 | 3 3 3 3 3 3 40 6 6 6 78 80 86 115 Greatest Overweight (x) 1 | . . . . . . . . . 1 . . . 1 Average Overweight (x) . | . . . . . . . . . . . . . . Largest Inventory Capacity 25 | 5 5 5 5 5 5 5 5 5 5 5 5 5 25 Average Capacity 6 | 5 5 5 5 5 5 5 5 5 5 5 5 5 8 Most Carried 25 | . . . . . . 5 5 5 5 5 5 5 25 Average Carried 5 | . . . . . . 2 5 5 3 4 4 5 7 Final Capacity 5 | 5 5 5 5 5 5 5 5 5 5 5 5 5 5 Final Carried 5 | . . . . . . 5 5 5 5 5 5 5 3 Class Distribution -------------------- 47% | Scavenger-Sprinter 25% | Mutant 24% | Sprinter Dominant Class ---------------- Mutant | -10/Materials Mutant | -10/Mines Mutant | -10/Subcaves Mutant | -8/Recycling Mutant | -8/Scraptown Mutant | -6/Factory Mutant | -5/Factory Mutant | -4/Factory Mutant | -4/DSF Sprinter | -3/Research Sprinter | -2/Research Sprinter | -2/Quarantine Scavenger-Sprinter | -2/Protoforge Resources | -11 -10 -10 -10 -8 -8 -6 -5 -4 -4 -3 -2 -2 -2 ----------- Run | Yrd Mat Min Sub Rec Scr Fac Fac Fac DSF Res Res Qua Frg Matter Collected 2610 | 141 . . 14 . . 22 . . . 345 270 110 1708 Remotely . | . . . . . . . . . . . . . . Salvage Created 6775 | . . . 14 . . 96 . . 29 106 128 . 6402 Parts 303 | . . . 1 . . 13 . . 3 2 4 . 280 Haulers Intercepted 2 | . . . . . . . . . . 1 1 . . Recyclers Shooed 1 | . . . . . . 1 . . . . . . . Parts Field Recycled . | . . . . . . . . . . . . . . Retrieved Matter . | . . . . . . . . . . . . . . Parts Self-Destructed 1 | . . . 1 . . . . . . . . . . Prevented . | . . . . . . . . . . . . . . Parts Restored . | . . . . . . . . . . . . . . Kills | -11 -10 -10 -10 -8 -8 -6 -5 -4 -4 -3 -2 -2 -2 ------- Run | Yrd Mat Min Sub Rec Scr Fac Fac Fac DSF Res Res Qua Frg Combat Hostiles Destroyed 99 | . . . 1 . . 3 . . 1 . . . 94 Melee 95 | . . . 1 . . . . . . . . . 94 Guns 1 | . . . . . . . . . 1 . . . . AOE 3 | . . . . . . 3 . . . . . . . Classes Destroyed 22 | . . . 1 . . 4 . . 1 1 . . 15 Worker 3 | . . . . . . 2 . . . . 1 . . Builder 1 | . . . . . . 1 . . . . . . . Hauler 2 | . . . . . . . . . . 1 1 . . Mechanic 1 | . . . . . . 1 . . . . . . . Operator 4 | . . . . . . 1 . . . . . . 3 Drone 13 | . . . . . . . . . . . . . 13 Watcher 3 | . . . . . . . . . . . . . 3 Swarmer 12 | . . . 1 . . 3 . . . . . . 8 Cutter 1 | . . . . . . . . . 1 . . . . Saboteur 2 | . . . . . . . . . . . . . 2 Grunt 12 | . . . . . . . . . . . . . 12 Brawler 2 | . . . . . . . . . . . . . 2 Duelist 5 | . . . . . . . . . . . . . 5 Protector 4 | . . . . . . . . . . . . . 4 Sentry 2 | . . . . . . . . . . . . . 2 Hunter 11 | . . . . . . . . . . . . . 11 Programmer 7 | . . . . . . . . . . . . . 7 Behemoth 1 | . . . . . . . . . . . . . 1 Hotshot 4 | . . . . . . . . . . . . . 4 Decapitator 4 | . . . . . . . . . . . . . 4 Immortal 2 | . . . . . . . . . . . . . 2 Striker 7 | . . . . . . . . . . . . . 7 Executioner 8 | . . . . . . . . . . . . . 8 Scrapper 1 | . . . . . . . . . . . . . 1 Elite 1 | . . . . . . . . . . . . . 1 Best Kill Streak 17 | . . . 1 . . 6 . . 1 1 1 . 17 Combat Bots Only 16 | . . . 1 . . 3 . . 1 . . . 16 Max Kills in Single Turn 5 | . . . 1 . . 5 . . 1 1 1 . 1 Gunslinging . | . . . . . . . . . . . . . . Exploded 3 | . . . . . . 3 . . . . . . . Melee 1 | . . . 1 . . . . . . . . . 1 Uniques/NPCs Destroyed . | . . . . . . . . . . . . . . Combat | -11 -10 -10 -10 -8 -8 -6 -5 -4 -4 -3 -2 -2 -2 -------- Run | Yrd Mat Min Sub Rec Scr Fac Fac Fac DSF Res Res Qua Frg Hostile Shots Fired 1158 | . . . 43 . . 155 12 . 23 34 103 8 780 Missed 620 | . . . 18 . . 65 8 . 4 24 63 6 432 Hits 538 | . . . 25 . . 90 4 . 19 10 40 2 348 Melee 63 | . . . . . . . . . 16 . . . 47 Projectile 475 | . . . 25 . . 90 4 . 3 10 40 2 301 AOE 7 | . . . . . . . . . 2 . . . 5 Critical Strikes 58 | . . . . . . 2 . . 7 2 2 . 45 Actively Blocked 4 | . . . . . . . . . . . . . 4 Part Disruptions 2 | . . . . . . . . . . . . . 2 Actively Blocked 1 | . . . . . . . . . . . . . 1 Damage Taken 14807 | . . . 188 . . 1530 62 . 615 210 753 44 11405 Core 2312 | . . . 66 . . 330 19 . 397 38 123 . 1339 Absorbed by Shields 46 | . . . . . . . . . . 10 36 . . Redirected to Shielding 296 | . . . . . . . . . . . 19 . 277 Regen/Repaired (Parts) 1889 | . . . . . . . . . . . . . 1889 Core Remaining (%) 82 | 100 . . . . 73 61 98 . 65 97 . . . Volleys Fired 25 | . . . . . . . . . 10 . . . 15 Largest 2 | . . . . . . . . . 2 . . . 2 Hottest 76 | . . . . . . . . . 60 . . . 76 Shots Fired 30 | . . . . . . . . . 13 . . . 17 Gun 30 | . . . . . . . . . 13 . . . 17 Cannon . | . . . . . . . . . . . . . . Launcher . | . . . . . . . . . . . . . . Special . | . . . . . . . . . . . . . . Kinetic 17 | . . . . . . . . . . . . . 17 Thermal 13 | . . . . . . . . . 13 . . . . Explosive . | . . . . . . . . . . . . . . Electromagnetic . | . . . . . . . . . . . . . . Robot Hit Streak 5 | . . . . . . . . . 5 . . . 1 Robot Miss Streak 3 | . . . . . . . . . 3 . . . 2 Penetration Max . | . . . . . . . . . . . . . . Secondary Targets . | . . . . . . . . . . . . . . Shots Hit Robots 267 | . . . . . . . . . 8 3 4 . 252 Core Hits 127 | . . . 1 . . 5 . . 4 1 2 . 114 Critical Kills . | . . . . . . . . . . . . . . Critical Parts Destroyed . | . . . . . . . . . . . . . . Critical Strikes 32 | . . . . . . . . . . . . . 32 Sever 13 | . . . . . . . . . . . . . 13 Impale 19 | . . . . . . . . . . . . . 19 Melee Attacks 360 | . . . . . . . . . . 4 32 6 318 Impact . | . . . . . . . . . . . . . . Slashing 211 | . . . . . . . . . . 4 32 6 169 Piercing 149 | . . . . . . . . . . . . . 149 Sneak Attacks 21 | . . . . . . . . . . 1 2 . 18 Combat Hostiles 3 | . . . . . . . . . . . . . 3 Follow-up Attacks 26 | . . . . . . . . . . 1 . . 25 Damage Inflicted 21538 | . . . 18 . . 647 . . 107 276 394 . 20096 Guns 165 | . . . . . . . . . 71 . . . 94 Cannons . | . . . . . . . . . . . . . . Explosions 630 | . . . . . . 630 . . . . . . . Melee 20672 | . . . . . . . . . . 276 394 . 20002 Ramming 71 | . . . 18 . . 17 . . 36 . . . . Kinetic 94 | . . . . . . . . . . . . . 94 Thermal 590 | . . . . . . 519 . . 71 . . . . Explosive 111 | . . . . . . 111 . . . . . . . Electromagnetic . | . . . . . . . . . . . . . . Impact . | . . . . . . . . . . . . . . Slashing 13014 | . . . . . . . . . . 276 394 . 12344 Piercing 7658 | . . . . . . . . . . . . . 7658 Highest Corruption 12 | . . . . . . 1 . . 4 4 . . 12 Average Corruption 5 | . . . . . . 1 . . 1 2 . . 6 Corruption Purged . | . . . . . . . . . . . . . . Corruption Blocked 2 | . . . . . . . . . . . 2 . . Effects 56 | . . . . . . 3 . . . 1 . . 52 Message Errors 17 | . . . . . . 1 . . . 1 . . 15 Matter Fused 17 | . . . . . . 1 . . . . . . 16 Heat Flow Errors 5 | . . . . . . . . . . . . . 5 Energy Discharges 6 | . . . . . . 1 . . . . . . 5 Parts Rejected 1 | . . . . . . . . . . . . . 1 Parts Fused 2 | . . . . . . . . . . . . . 2 Data Loss (minor) 5 | . . . . . . . . . . . . . 5 Data Loss (major) 1 | . . . . . . . . . . . . . 1 Alerts 2 | . . . . . . . . . . . . . 2 Overload Shots . | . . . . . . . . . . . . . . Overflow Damage 2758 | . . . . . . 154 . . . 16 37 . 2551 Projectiles . | . . . . . . . . . . . . . . Explosions 154 | . . . . . . 154 . . . . . . . Melee 2604 | . . . . . . . . . . 16 37 . 2551 Knockbacks . | . . . . . . . . . . . . . . Impact . | . . . . . . . . . . . . . . Kinetic . | . . . . . . . . . . . . . . Secondary . | . . . . . . . . . . . . . . Self-Inflicted Damage 81 | . . . 9 . . 56 . . 16 . . . . Shots 1 | . . . . . . 1 . . . . . . . Rammed 12 | . . . 1 . . 2 . . 9 . . . . Targets Rammed 17 | . . . 1 . . 7 . . 9 . . . . Kicked 4 | . . . . . . 4 . . . . . . . Crushed 1 | . . . . . . 1 . . . . . . . Highest Temperature 460 | . . . . . . . . . . 161 460 . 266 Average Temperature 84 | . . . . . . . . . . 73 98 . 56 Received Heat Transfer 1035 | . . . 78 . . 186 18 . . 33 99 9 612 Effects 3 | . . . . . . . . . . . 3 . . Energy Bleed 1 | . . . . . . . . . . . 1 . . Interference 2 | . . . . . . . . . . . 2 . . Siege Activations . | . . . . . . . . . . . . . . Martial Activations . | . . . . . . . . . . . . . . Shielding Activations . | . . . . . . . . . . . . . . Robots Disrupted . | . . . . . . . . . . . . . . Combat Hostiles . | . . . . . . . . . . . . . . Robots Corrupted . | . . . . . . . . . . . . . . Combat Hostiles . | . . . . . . . . . . . . . . Parts Fried . | . . . . . . . . . . . . . . Impact Corruptions . | . . . . . . . . . . . . . . Robots Melted . | . . . . . . . . . . . . . . Combat Hostiles . | . . . . . . . . . . . . . . Parts Melted 1 | . . . . . . . . . . . . . 1 Heat Transferred 596 | . . . . . . 300 . . 296 . . . . Parts Sabotaged 2 | . . . . . . . . . . . . . 2 Parts Stolen . | . . . . . . . . . . . . . . Parts Stripped . | . . . . . . . . . . . . . . Power Chain Reactions . | . . . . . . . . . . . . . . Alert | -11 -10 -10 -10 -8 -8 -6 -5 -4 -4 -3 -2 -2 -2 ------- Run | Yrd Mat Min Sub Rec Scr Fac Fac Fac DSF Res Res Qua Frg Maximum Alert Level 5 | . . . . . . 3 1 . . . 1 1 5 Low Security (%) 42 | 100 100 100 . 100 . 75 . 100 100 100 83 86 7 Level 1 11 | . . . . . . . 100 . . . 16 13 13 Level 2 3 | . . . . . . 2 . . . . . . 5 Level 3 14 | . . . . . . 22 . . . . . . 21 Level 4 7 | . . . . . . . . . . . . . 13 Level 5 21 | . . . . . . . . . . . . . 38 High Security . | . . . . . . . . . . . . . . Max Security . | . . . . . . . . . . . . . . Peak Influence 2400 | . . . . . . 782 362 162 102 67 316 210 2400 Initial 362 | . . . . . . . 362 162 102 40 31 174 112 Average 701 | . . . . . . 202 349 154 86 19 67 174 1195 Influence Increases 5143 | . . . 20 . . 962 . 4 30 144 519 86 3378 Destroy 0b10 Robot/C 1640 | . . . 20 . . 60 . . 20 . . . 1540 Destroy 0b10 Robot/NC 155 | . . . . . . 25 . . . 5 10 . 115 Destroy Leader 260 | . . . . . . 10 . . 10 2 2 . 236 Successful Hack 78 | . . . . . . 7 . 4 . . 24 5 38 Disable Machine 555 | . . . . . . 495 . . . . 15 30 15 Destroy Structure 175 | . . . . . . 35 . . . 2 63 6 69 Partial Spotted 255 | . . . . . . . . . . 60 90 . 105 Lose Combat Pursuer 2025 | . . . . . . 330 . . . 75 315 45 1260 Influence Decreases 2743 | . . . 20 . . 222 408 190 104 159 265 197 1178 Entered New Map 875 | . . . . . . . 378 170 44 32 26 137 88 Time Decay 1303 | . . . 20 . . 157 30 20 . 127 239 60 650 Lost Part 565 | . . . . . . 65 . . 60 . . . 440 Squads Dispatched 33 | . . . . . . 5 1 . 1 4 10 2 10 Investigation 18 | . . . . . . 4 1 . . 1 5 . 7 Extermination 6 | . . . . . . 1 . . . 1 3 1 . Reinforcement 9 | . . . . . . . . . 1 2 2 1 3 Assault . | . . . . . . . . . . . . . . Garrison . | . . . . . . . . . . . . . . Intercept . | . . . . . . . . . . . . . . Searches Triggered . | . . . . . . . . . . . . . . Construction Impeded . | . . . . . . . . . . . . . . Haulers Reinforced . | . . . . . . . . . . . . . . Active Scanning Responses . | . . . . . . . . . . . . . . Cargo Convoy Interrupts . | . . . . . . . . . . . . . . Stealth | -11 -10 -10 -10 -8 -8 -6 -5 -4 -4 -3 -2 -2 -2 --------- Run | Yrd Mat Min Sub Rec Scr Fac Fac Fac DSF Res Res Qua Frg Distress Signals 20 | . 1 . . . . 2 . . . 1 2 . 14 Communications Jammed . | . . . . . . . . . . . . . . Distress Signals . | . . . . . . . . . . . . . . Times Spotted 421 | . 3 . 10 . . 28 5 . 3 15 33 7 317 Peak Tracking Total 21 | . 4 . 8 . . 13 6 . 2 9 10 7 21 Tactical Retreats 57 | . . . . . . 9 . . . 1 8 2 37 Traps | -11 -10 -10 -10 -8 -8 -6 -5 -4 -4 -3 -2 -2 -2 ------- Run | Yrd Mat Min Sub Rec Scr Fac Fac Fac DSF Res Res Qua Frg Traps Triggered 9 | . . . . . . 4 1 1 . 1 1 . 1 Indirectly . | . . . . . . . . . . . . . . Trap Hack Attempts . | . . . . . . . . . . . . . . Triggered . | . . . . . . . . . . . . . . Disarmed . | . . . . . . . . . . . . . . Reprogrammed . | . . . . . . . . . . . . . . Reused . | . . . . . . . . . . . . . . Traps Extracted . | . . . . . . . . . . . . . . Installed . | . . . . . . . . . . . . . . Triggered . | . . . . . . . . . . . . . . Objects Rigged 21 | . . . . . . 21 . . . . . . . Exploded 3 | . . . . . . 3 . . . . . . . Machines | -11 -10 -10 -10 -8 -8 -6 -5 -4 -4 -3 -2 -2 -2 ---------- Run | Yrd Mat Min Sub Rec Scr Fac Fac Fac DSF Res Res Qua Frg Machines Disabled 37 | . . . . . . 33 . . . . 1 2 1 Max in Single Turn 24 | . . . . . . 24 . . . . 1 1 1 Machines Repaired . | . . . . . . . . . . . . . . Machines Dismantled . | . . . . . . . . . . . . . . Machines Sabotaged . | . . . . . . . . . . . . . . Overloaded Fab Kills . | . . . . . . . . . . . . . . Hacking | -11 -10 -10 -10 -8 -8 -6 -5 -4 -4 -3 -2 -2 -2 --------- Run | Yrd Mat Min Sub Rec Scr Fac Fac Fac DSF Res Res Qua Frg Machines Accessed 28 | . . . . . . 4 . 1 . 1 12 1 9 Terminals 8 | . . . . . . 1 . 1 . . 3 . 3 Fabricators 1 | . . . . . . . . . . . 1 . . Repair Stations 2 | . . . . . . 1 . . . . . . 1 Recycling Units 10 | . . . . . . 2 . . . 1 4 . 3 Scanalyzers 5 | . . . . . . . . . . . 2 1 2 Garrison Access 2 | . . . . . . . . . . . 2 . . Total Hacks 61 | . . . . . . 10 . 3 . 2 19 4 23 Successful 23 | . . . . . . 4 . 1 . 1 4 2 11 Failed 37 | . . . . . . 6 . 2 . 1 14 2 12 Catastrophic 12 | . . . . . . . . . . . 7 . 5 Database Lockouts 1 | . . . . . . . . . . . 1 . . Manual 33 | . . . . . . 7 . . . 2 10 3 11 Terminals 16 | . . . . . . 1 . 3 . . 5 . 7 Fabricators 1 | . . . . . . . . . . . 1 . . Repair Stations 4 | . . . . . . 3 . . . . . . 1 Recycling Units 23 | . . . . . . 6 . . . 2 7 . 8 Scanalyzers 14 | . . . . . . . . . . . 3 4 7 Garrison Access 3 | . . . . . . . . . . . 3 . . Terminal Hacks 5 | . . . . . . . . 1 . . . . 4 Prototype ID Bank 1 | . . . . . . . . . . . . . 1 Open DSF 1 | . . . . . . . . 1 . . . . . Alert Level 1 | . . . . . . . . . . . . . 1 Locate Traps 1 | . . . . . . . . . . . . . 1 Zone Layout 1 | . . . . . . . . . . . . . 1 Fabricator Hacks . | . . . . . . . . . . . . . . Repair Station Hacks 1 | . . . . . . 1 . . . . . . . Refit 1 | . . . . . . 1 . . . . . . . Recycling Unit Hacks . | . . . . . . . . . . . . . . Scanalyzer 5 | . . . . . . . . . . . 1 1 3 Retrieve Study 5 | . . . . . . . . . . . 1 1 3 Garrison Access Hacks . | . . . . . . . . . . . . . . Unauthorized Hacks 12 | . . . . . . 3 . . . 1 3 1 4 Terminals 3 | . . . . . . 1 . . . . . . 2 Botnet 1 | . . . . . . . . . . . . . 1 Detonate 1 | . . . . . . 1 . . . . . . . Disrupt 1 | . . . . . . . . . . . . . 1 Fabricators . | . . . . . . . . . . . . . . Repair Stations 1 | . . . . . . . . . . . . . 1 Patch 1 | . . . . . . . . . . . . . 1 Recycling Units 7 | . . . . . . 2 . . . 1 3 . 1 Fedlink 7 | . . . . . . 2 . . . 1 3 . 1 Scanalyzers 1 | . . . . . . . . . . . . 1 . Researchers 1 | . . . . . . . . . . . . 1 . Garrison Access . | . . . . . . . . . . . . . . Data Cores Recovered 1 | . . . . . . 1 . . . . . . . Used . | . . . . . . . . . . . . . . Hacking Detections 22 | . . . . . . 3 . 1 . . 9 1 8 Full Trace Events 5 | . . . . . . . . . . . 2 . 3 Feedback Events 1 | . . . . . . . . . . . 1 . . Corruption 1 | . . . . . . . . . . . 1 . . Feedback Blocked . | . . . . . . . . . . . . . . Robot Schematics Acquired . | . . . . . . . . . . . . . . Robots Built . | . . . . . . . . . . . . . . Authchips . | . . . . . . . . . . . . . . Time . | . . . . . . . . . . . . . . Total Robot Build Rating . | . . . . . . . . . . . . . . Part Schematics Acquired . | . . . . . . . . . . . . . . Parts Built . | . . . . . . . . . . . . . . Authchips . | . . . . . . . . . . . . . . Time . | . . . . . . . . . . . . . . Total Part Build Rating . | . . . . . . . . . . . . . . Part Studies Acquired 5 | . . . . . . . . . . . 1 1 3 Parts Repaired . | . . . . . . . . . . . . . . Time . | . . . . . . . . . . . . . . Parts Recycled . | . . . . . . . . . . . . . . Recycled Matter . | . . . . . . . . . . . . . . Retrieved Matter . | . . . . . . . . . . . . . . Retrieved Components . | . . . . . . . . . . . . . . Parts Scanalyzed . | . . . . . . . . . . . . . . Part Schematics Acquired . | . . . . . . . . . . . . . . Parts Damaged . | . . . . . . . . . . . . . . Bothacking | -11 -10 -10 -10 -8 -8 -6 -5 -4 -4 -3 -2 -2 -2 ------------ Run | Yrd Mat Min Sub Rec Scr Fac Fac Fac DSF Res Res Qua Frg Used RIF Installer . | . . . . . . . . . . . . . . Robots Hacked . | . . . . . . . . . . . . . . Non-combat . | . . . . . . . . . . . . . . Combat . | . . . . . . . . . . . . . . Robot Hacks Applied . | . . . . . . . . . . . . . . Relay Couplers Released . | . . . . . . . . . . . . . . Fabnet Peak Effective % . | . . . . . . . . . . . . . . Robots Rewired . | . . . . . . . . . . . . . . Allies Hacked . | . . . . . . . . . . . . . . Hacks Repelled . | . . . . . . . . . . . . . . Allies | -11 -10 -10 -10 -8 -8 -6 -5 -4 -4 -3 -2 -2 -2 -------- Run | Yrd Mat Min Sub Rec Scr Fac Fac Fac DSF Res Res Qua Frg Total Allies . | . . . . . . . . . . . . . . Largest Group . | . . . . . . . . . . . . . . Highest-Rated Group . | . . . . . . . . . . . . . . Highest-Rated Ally . | . . . . . . . . . . . . . . Total Orders . | . . . . . . . . . . . . . . Ally Attacks . | . . . . . . . . . . . . . . Total Damage . | . . . . . . . . . . . . . . Kills . | . . . . . . . . . . . . . . Allies Corrupted . | . . . . . . . . . . . . . . Allies Melted 1 | . . . . . . . . . . . . . 1 Intel | -11 -10 -10 -10 -8 -8 -6 -5 -4 -4 -3 -2 -2 -2 ------- Run | Yrd Mat Min Sub Rec Scr Fac Fac Fac DSF Res Res Qua Frg Active Infowar (turns) 1339 | . . . . . . . . . . . 605 134 600 Sensors 830 | . . . . . . . . . . . 605 134 91 A.S.S. 1 | . . . . . . . . . . . . . 1 Cloaking 509 | . . . . . . . . . . . . . 509 Robot Analysis Total . | . . . . . . . . . . . . . . Derelict Logs Recovered 2 | . . . 2 . . . . . . . . . . Drone Launches . | . . . . . . . . . . . . . . Drone Recoveries . | . . . . . . . . . . . . . . Exploration | -11 -10 -10 -10 -8 -8 -6 -5 -4 -4 -3 -2 -2 -2 ------------- Run | Yrd Mat Min Sub Rec Scr Fac Fac Fac DSF Res Res Qua Frg Turns Passed 4580 | 15 26 77 61 161 158 464 67 45 77 269 634 136 2390 Spaces Moved 10353 | 23 52 71 120 321 316 835 100 56 70 706 1598 389 5696 Core 1881 | 23 52 71 120 321 316 828 50 . 28 72 . . . Treads 3 | . . . . . . 3 . . . . . . . Legs . | . . . . . . . . . . . . . . Wheels . | . . . . . . . . . . . . . . Hover . | . . . . . . . . . . . . . . Flight 8469 | . . . . . . 4 50 56 42 634 1598 389 5696 Fastest Speed 15 | 50 50 50 50 50 50 50 50 50 40 18 21 21 15 Average Speed 29 | 50 50 50 50 50 50 50 50 50 46 29 27 23 23 Slowest Speed 160 | 50 50 50 50 50 50 160 50 50 100 50 31 27 99 Overloaded Moves . | . . . . . . . . . . . . . . Propulsion Burnouts . | . . . . . . . . . . . . . . Robots Hopped 65 | . . . . . . 3 4 . . 13 11 4 30 Potential Cave-ins . | . . . . . . . . . . . . . . Cave-ins Triggered . | . . . . . . . . . . . . . . Exploration Rate (%) 31 | 3 17 21 17 85 34 30 4 2 49 22 52 49 58 Regions Visited 13 Branch Regions 6 Pre-discovered Areas 1 | . . . . . . 1 . . . . . . . Known Exits Taken 5 | . . . . . . 1 1 1 . . 1 1 . Unknown Exits Taken 7 | 1 1 1 1 1 1 . . . . 1 . . . Scrap Searched . | . . . . . . . . . . . . . . Spaces Dug 35 | . . . . . . . . . . 1 21 2 11 Terrain Destroyed 92 | . . . . . . 45 . . . 1 21 2 23 Melee 35 | . . . . . . . . . . 1 21 2 11 Projectile 12 | . . . . . . . . . . . . . 12 AOE 45 | . . . . . . 45 . . . . . . . Terrain Rammed . | . . . . . . . . . . . . . . Walls Destroyed . | . . . . . . . . . . . . . . Machines Disabled . | . . . . . . . . . . . . . . Actions | -11 -10 -10 -10 -8 -8 -6 -5 -4 -4 -3 -2 -2 -2 --------- Run | Yrd Mat Min Sub Rec Scr Fac Fac Fac DSF Res Res Qua Frg Total 11563 | 24 51 111 120 320 315 867 111 71 99 748 1750 425 6551 Wait 364 | . . 41 . . . . 14 . . . 49 28 232 Move 10226 | 22 51 70 119 320 315 830 93 55 69 683 1575 380 5644 Hop 49 | . . . . . . 1 2 . . 9 11 4 22 Pick Up 80 | . . . . . . 3 . . 3 6 10 . 58 Fast Attach 128 | 2 . . . . . 8 2 1 4 21 19 1 70 Attach 35 | . . . . . . . . . 2 1 2 . 30 Detach 11 | . . . . . . 2 . . . 2 . 1 6 Swap 77 | . . . . . . . . . . 2 14 3 58 Drop 167 | . . . . . . 1 . . 2 15 35 4 110 Fire 25 | . . . . . . . . . 10 . . . 15 Melee 318 | . . . . . . . . . . 3 26 4 285 Ram 11 | . . . 1 . . 1 . . 9 . . . . Kick 4 | . . . . . . 4 . . . . . . . Crush 2 | . . . . . . 2 . . . . . . . Escape Stasis 45 | . . . . . . 15 . 15 . 6 9 . . Rewire . | . . . . . . . . . . . . . . Trap . | . . . . . . . . . . . . . . Miscellaneous 21 | . . . . . . . . . . . . . 21 Route ------- -11/Scrapyard -10/Materials -10/Mines -10/Subcaves (discovered 2 exits: [*Mat] / [*Rec]) -8/Recycling (discovered 2 exits: *Fac / [*Scr]) -8/Scraptown -6/Factory -5/Factory -4/Factory -4/DSF -3/Research -2/Research (discovered 4 exits: *Acc x3 / *Qua) -2/Quarantine (discovered 2 exits: [*Sec] / *Frg) -2/Protoforge History --------- Turn | Location | Event 3 | -11/Scrapyard | Discovered new exit (range 15) 16 | -11/Scrapyard | Entered Materials 35 | -10/Materials | Discovered new exit (range 16) 42 | -10/Materials | Entered Mines 103 | -10/Mines | Discovered new exit (range 4) 119 | -10/Mines | Entered Subcaves 125 | -10/Subcaves | Learned Materials stockpile data 131 | -10/Subcaves | Discovered new exit (range 9) 142 | -10/Subcaves | Shifting Twisted Machinery released Sub. Beam Cannon 173 | -10/Subcaves | Discovered new exit (range 15) 180 | -10/Subcaves | Entered Recycling 255 | -8/Recycling | Discovered new exit (range 16) 312 | -8/Recycling | Build established: Mutant 328 | -8/Recycling | Scanned before Scraplab entrance 335 | -8/Recycling | Entered Scraplab 339 | -8/Recycling | Discovered new exit (range 4) 341 | -8/Recycling | Entered Scraptown 378 | -8/Scraptown | Visited UFD Registry 378 | -8/Scraptown | Registered with UFD as "Roughshaft" 471 | -8/Scraptown | Met Optimus 471 | -8/Scraptown | Accepted into 0bPrime 497 | -8/Scraptown | Discovered new exit (range 5) 499 | -8/Scraptown | Entered Factory 499 | -6/Factory | Evolved 8 slots: Propulsion x8 533 | -6/Factory | Loaded intel: 8 recycling unit locations 702 | -6/Factory | Spotted B-75 Beast 827 | -6/Factory | Learned location of Protoforge (-2) 836 | -6/Factory | Lost 7 parts (5n2u) 946 | -6/Factory | Discovered new exit (range 15) 952 | -6/Factory | Identified exit to Factory 963 | -6/Factory | Entered another Factory area 963 | -5/Factory | Evolved 2 slots: Utility x2 978 | -5/Factory | Spotted B-75 Beast 1028 | -5/Factory | Discovered new exit (range 4) 1030 | -5/Factory | Identified exit to Factory 1030 | -5/Factory | Entered another Factory area 1030 | -4/Factory | Evolved 2 slots: Utility x2 1075 | -4/Factory | Identified exit to DSF 1075 | -4/Factory | Entered DSF 1113 | -4/DSF | Additional patrols routed to DSF 1137 | -4/DSF | Discovered new exit (range 15) 1152 | -4/DSF | Entered Research 1152 | -3/Research | Evolved 2 slots: Utility x2 1168 | -3/Research | Lost 6 parts (1n3u2w) 1268 | -3/Research | Spotted B-86 Titan 1328 | -3/Research | Loaded intel: 5 recycling unit locations 1416 | -3/Research | Spotted B-86 Titan 1417 | -3/Research | Discovered new exit (range 15) 1421 | -3/Research | Entered another Research area 1421 | -2/Research | Evolved 2 slots: Power x1, Utility x1 1460 | -2/Research | Discovered new exit (range 11) 1463 | -2/Research | Identified exit to Access 1476 | -2/Research | Build established: Sprinter 1544 | -2/Research | Central database locked down 1622 | -2/Research | Loaded intel: 5 recycling unit locations 1724 | -2/Research | Found Prototype Device 1724 | -2/Research | Identified Adv. Particle Accelerator 1779 | -2/Research | Found Prototype Device 1779 | -2/Research | Identified Exp. EM Shield 1903 | -2/Research | Discovered exit to Access (range 6) 1972 | -2/Research | Discovered exit to Access (range 3) 2051 | -2/Research | Discovered new exit (range 13) 2055 | -2/Research | Identified exit to Quarantine 2055 | -2/Research | Entered Quarantine 2167 | -2/Quarantine | Found Alien Slashing Weapon 2167 | -2/Quarantine | Identified Sigix Broadsword 2176 | -2/Quarantine | Spotted Fortress 2190 | -2/Quarantine | Discovered new exit (range 7) 2190 | -2/Quarantine | Discovered new exit (range 6) 2191 | -2/Quarantine | Identified exit to Protoforge 2191 | -2/Quarantine | Entered Protoforge 2212 | -2/Protoforge | Spotted Hotshot 2234 | -2/Protoforge | Spotted B-90 Cyclops 2235 | -2/Protoforge | Superfortress began startup sequence 2244 | -2/Protoforge | Spotted Hotshot 2247 | -2/Protoforge | Spotted Hotshot 2249 | -2/Protoforge | Spotted AP7-3 2250 | -2/Protoforge | Spotted AP7-3 2253 | -2/Protoforge | Spotted Overlord 2255 | -2/Protoforge | Spotted EXE-6 2255 | -2/Protoforge | Spotted EXE-6 2255 | -2/Protoforge | Spotted SKR-2 2256 | -2/Protoforge | Spotted SKR-2 2256 | -2/Protoforge | Spotted SKR-2 2265 | -2/Protoforge | UFD initiated attack on Protoforge (Readiness: Low) 2265 | -2/Protoforge | Loaded intel: 3 recycling unit locations 2294 | -2/Protoforge | Spotted EXE-6 2301 | -2/Protoforge | Optimus greeted in Protoforge 2310 | -2/Protoforge | Found Prototype Processor 2310 | -2/Protoforge | Identified Exp. Melee Analysis Suite 2343 | -2/Protoforge | Forge Plexus network access discovered 2357 | -2/Protoforge | Found Exp. Core Analyzer 2363 | -2/Protoforge | Spotted Hotshot 2368 | -2/Protoforge | Lost 20 allies 2374 | -2/Protoforge | Destroyed Hotshot 2378 | -2/Protoforge | Destroyed Hotshot 2416 | -2/Protoforge | Spotted Hotshot 2417 | -2/Protoforge | Spotted Hotshot 2419 | -2/Protoforge | Destroyed Hotshot 2420 | -2/Protoforge | Destroyed Hotshot 2459 | -2/Protoforge | Destroyed 7 combat bots 2552 | -2/Protoforge | UFD reported confirmed Drillbomb installation 2568 | -2/Protoforge | Met 7R-MNS 2583 | -2/Protoforge | Spotted Executioner 2584 | -2/Protoforge | Spotted Executioner 2587 | -2/Protoforge | Build established: Scavenger-Sprinter 2605 | -2/Protoforge | Destroyed Executioner 2642 | -2/Protoforge | UFD reported confirmed Drillbomb installation 2646 | -2/Protoforge | Spotted Striker 2647 | -2/Protoforge | Spotted Executioner 2652 | -2/Protoforge | Spotted Executioner 2672 | -2/Protoforge | Spotted Striker 2675 | -2/Protoforge | Spotted Striker 2714 | -2/Protoforge | Destroyed Striker 2720 | -2/Protoforge | Destroyed Striker 2751 | -2/Protoforge | Spotted Striker 2755 | -2/Protoforge | Spotted Striker 2769 | -2/Protoforge | Destroyed 10 combat bots 2812 | -2/Protoforge | Destroyed Striker 2824 | -2/Protoforge | Spotted Executioner 2826 | -2/Protoforge | Spotted Executioner 2839 | -2/Protoforge | Destroyed Executioner 2886 | -2/Protoforge | Destroyed B-90 Cyclops 2894 | -2/Protoforge | Found UFD Drillbomb 2904 | -2/Protoforge | Lost 7 allies 2907 | -2/Protoforge | Found Quantum Capacitor 2921 | -2/Protoforge | Installed UFD Drillbomb at designated target 2921 | -2/Protoforge | UFD reported confirmed Drillbomb installation 2924 | -2/Protoforge | Found UFD Drillbomb 2952 | -2/Protoforge | Installed UFD Drillbomb at designated target 2952 | -2/Protoforge | UFD reported confirmed Drillbomb installation 2966 | -2/Protoforge | Spotted Striker 2983 | -2/Protoforge | Found Exp. Core Analyzer 2991 | -2/Protoforge | Found Prototype Device 2992 | -2/Protoforge | Identified Adv. Kinecellerator 2999 | -2/Protoforge | Spotted Hotshot 2999 | -2/Protoforge | Spotted Hotshot 2999 | -2/Protoforge | Spotted Hotshot 3000 | -2/Protoforge | Spotted Executioner 3001 | -2/Protoforge | Spotted Hotshot 3004 | -2/Protoforge | Destroyed Executioner 3008 | -2/Protoforge | Spotted Executioner 3009 | -2/Protoforge | Spotted Striker 3028 | -2/Protoforge | Spotted Executioner 3028 | -2/Protoforge | Spotted Executioner 3033 | -2/Protoforge | Spotted Striker 3052 | -2/Protoforge | Found Exp. ECM Suite 3073 | -2/Protoforge | Found UFD Drillbomb 3099 | -2/Protoforge | Found Exp. Core Analyzer 3100 | -2/Protoforge | Spotted Executioner 3124 | -2/Protoforge | Spotted Executioner 3156 | -2/Protoforge | Lost 7 allies 3199 | -2/Protoforge | Spotted Striker 3201 | -2/Protoforge | Spotted Executioner 3201 | -2/Protoforge | Spotted Executioner 3208 | -2/Protoforge | Spotted Striker 3212 | -2/Protoforge | Triborg destroyed during the operation 3212 | -2/Protoforge | Optimus emerged from Triborg 3233 | -2/Protoforge | Spotted Executioner 3233 | -2/Protoforge | Spotted Executioner 3247 | -2/Protoforge | Lost 4 allies 3250 | -2/Protoforge | Core integrity fell below 50% 3265 | -2/Protoforge | Lost 4 parts (1n2u1w) 3303 | -2/Protoforge | Spotted Executioner 3303 | -2/Protoforge | Spotted Striker 3304 | -2/Protoforge | Spotted Executioner 3304 | -2/Protoforge | Spotted Executioner 3306 | -2/Protoforge | Destroyed Executioner 3327 | -2/Protoforge | Destroyed Executioner 3348 | -2/Protoforge | Lost 5 allies 3361 | -2/Protoforge | Spotted Executioner 3365 | -2/Protoforge | Spotted Executioner 3370 | -2/Protoforge | Destroyed Executioner 3373 | -2/Protoforge | Spotted Executioner 3385 | -2/Protoforge | Spotted Executioner 3399 | -2/Protoforge | Destroyed 16 combat bots 3416 | -2/Protoforge | Lost 4 parts (1p2n1u) 3434 | -2/Protoforge | Spotted Executioner 3435 | -2/Protoforge | UFD reported confirmed Drillbomb installation 3435 | -2/Protoforge | Spotted Executioner 3436 | -2/Protoforge | Spotted Striker 3436 | -2/Protoforge | Spotted Executioner 3446 | -2/Protoforge | UFD reported confirmed Drillbomb installation 3468 | -2/Protoforge | Destroyed Striker 3509 | -2/Protoforge | Found Exp. Core Analyzer 3525 | -2/Protoforge | Lost 7 parts (2p3n2u) 3534 | -2/Protoforge | Spotted Striker 3535 | -2/Protoforge | Spotted Executioner 3535 | -2/Protoforge | Spotted Executioner 3544 | -2/Protoforge | Lost 5 allies 3547 | -2/Protoforge | Core integrity fell below 20% 3555 | -2/Protoforge | UFD reported confirmed Drillbomb installation 3580 | -2/Protoforge | Lost 5 parts (1p4n) 3645 | -2/Protoforge | Spotted SKR-2 3652 | -2/Protoforge | Lost 3 allies 3677 | -2/Protoforge | Destroyed Executioner 3704 | -2/Protoforge | Lost 3 allies 3755 | -2/Protoforge | Spotted Striker 3758 | -2/Protoforge | Spotted Striker 3767 | -2/Protoforge | Spotted Immortal 3767 | -2/Protoforge | Spotted Immortal 3767 | -2/Protoforge | Spotted Immortal 3796 | -2/Protoforge | Spotted Striker 3810 | -2/Protoforge | Found Prototype Device 3810 | -2/Protoforge | Identified Exp. Cloaking Device 3812 | -2/Protoforge | Found Exp. Melee Analysis Suite 3819 | -2/Protoforge | Destroyed Immortal 3832 | -2/Protoforge | Destroyed Immortal 3836 | -2/Protoforge | Destroyed SKR-2 3843 | -2/Protoforge | Lost 7 allies 3844 | -2/Protoforge | Found Exp. Cloaking Device 3845 | -2/Protoforge | Found Exp. Jetlance 3848 | -2/Protoforge | Found Exp. Melee Analysis Suite 3852 | -2/Protoforge | Found Exp. Melee Analysis Suite 3866 | -2/Protoforge | Lost 9 parts (5n4u) 3897 | -2/Protoforge | Spotted Striker 3899 | -2/Protoforge | Spotted Executioner 3904 | -2/Protoforge | Spotted Executioner 3938 | -2/Protoforge | Lost 3 allies 4041 | -2/Protoforge | Spotted Executioner 4041 | -2/Protoforge | Spotted Executioner 4043 | -2/Protoforge | UFD reported confirmed Drillbomb installation 4131 | -2/Protoforge | Found Exp. Cloaking Device 4157 | -2/Protoforge | Spotted Decapitator 4157 | -2/Protoforge | Spotted Decapitator 4157 | -2/Protoforge | Spotted Decapitator 4171 | -2/Protoforge | Lost 8 allies 4174 | -2/Protoforge | Found Prototype Device 4174 | -2/Protoforge | Identified Active Sensor Suite 4203 | -2/Protoforge | Spotted Executioner 4216 | -2/Protoforge | Spotted Striker 4247 | -2/Protoforge | Spotted Executioner 4294 | -2/Protoforge | Destroyed Executioner 4302 | -2/Protoforge | Spotted Striker 4323 | -2/Protoforge | Lost 12 allies 4333 | -2/Protoforge | Spotted Striker 4337 | -2/Protoforge | Destroyed Striker 4341 | -2/Protoforge | System corruption reached 10% 4343 | -2/Protoforge | Destroyed Striker 4351 | -2/Protoforge | P-80 Master assimilated allied 02FBG-D 4388 | -2/Protoforge | Found UFD Drillbomb 4390 | -2/Protoforge | Found UFD Drillbomb 4398 | -2/Protoforge | Lost 7 allies 4499 | -2/Protoforge | Spotted Executioner 4511 | -2/Protoforge | Spotted Decapitator 4511 | -2/Protoforge | Spotted Decapitator 4515 | -2/Protoforge | Spotted Decapitator 4515 | -2/Protoforge | Spotted Executioner 4516 | -2/Protoforge | Spotted Decapitator 4524 | -2/Protoforge | Destroyed Decapitator 4529 | -2/Protoforge | Spotted Executioner 4534 | -2/Protoforge | Spotted Striker 4547 | -2/Protoforge | Destroyed Decapitator 4551 | -2/Protoforge | Destroyed Decapitator 4575 | -2/Protoforge | Destroyed Decapitator 4581 | -2/Protoforge | Destroyed by Executioner with Helical Railgun Last Messages --------------- target. 04551_ Decapitator destroyed. 04552_ Imp. Heavy Armor Plating destroyed. 04552_ Knocked back. 04553_ Acquired Exp. Reaction Control System. 04557_ 5CUFHETC# RDFF0IU:QAPEK9Y%004B3 04564_ Exp. Reaction Control System severed. 04568_ Acquired 5 matter. 04570_ Exp. Reaction Control System severed. 04571_ Acquired Exp. Reaction Control System. 04572_ System corrupted: Component data lost. 04573_ Knocked back. 04574_ Acquired 7 matter. 04575_ Decapitator suffers critical hit (Impale). 04575_ Decapitator destroyed. 04576_ Acquired 35 matter. 04578_ Nanosword follow-up attack on Striker. 04580_ Imp. Core Shielding destroyed. 04581_ Penetrated by Slug. Map ----- +----------------------------------------------------+ | % % % ## ##??????####?? | | ##!% "##"#""+#######"# ##???????????? | | ##""%"#"!##" + ##???????????? | | =! % !!! # # "" ##???????????? | | ""%% %!! " """"""" + "" ##???????????? | | "*[ %%! ! " """"""" # " ##???????????? | | !""=%%%[% " ^ """""" # "" ##???????????? | | ==[!= [!![=# ^^^ # "" ##???????????? | | ####["%##### ^""""""" # "" ##???????????? | | %*^!% !## "" """" # ##???????????? | | !!%" % ##" " " """ ###############???????????? | | "/"[! ### ###############???????????? | | "" " "! ##" =% # ##???????????? | | "" " "" "## %""*! ### ##???????????? | | "" " "" "## " " ### ##???????????? | | "%" %## "##""### ##???????????? | | "" """" % =% + ##???????????? | | "" """" * # ##???????????? | | "" """" % + ##???????????? | | "" """" %% # ##???????????? | | #"""+##"####### ##???????????? | | "" """" # ## ##???????????? | | "" """" # ## ##???????????? | | "" """" + """" """" ##!]! ##???????????? | | "" """" # """" """" ###K############???????????? | | # """" """" ###@;###########???????????? | | # """" """" ##; # #????????????????????? | | ###"T"#### ### ##?????????????????????? | | ##"""#### """" """" ###E##?????????????????????? | | ######### """" """" + ##?????????????????????? | | /%!%=!* / """" """" ######?????????????????????? | | ######### """" """" ######?????????????????????? | | ######### ##?????????????????????????? | | ##?????################?????????????????????????? | | ##?????################?????????????????????????? | | ##??????????????????????????????????????????????? | | ##??????????????????????????????????????????????? | | ###??????????????????????????????????????????????? | | | | | | | | | | | | | | | | | | | | | | | | | +----------------------------------------------------+ Best States ------------- Heat Dissipation 75 Energy Generation 53 Energy Capacity 600 Matter Stores 300 Matter Capacity 300 Sight Range 16 Robot Scan Range 16 Terrain Scan Density 210 Cloak Strength 4 Additional Mass Support 25 Corruption Block 20 Armor Coverage 975 Resistance: KI 20 Core Shielding 30 Propulsion Shielding 15 Utility Shielding 66 Melee Speed Boost 50 Phase Shifting 15 Evasion (%) 94 Melee Accuracy 28 Core Analysis 12 Recoil Reduction 2 Offensive Hacking 10 Item Schematics ----------------- None Robot Schematics ------------------ None Fabricated ------------ Nothing Repaired ---------- Nothing Studied --------- Q-thruster | -2/Research | Hacked Impulse Thruster Array | -2/Quarantine | Hacked Xenon Bombardment Thruster | -2/Protoforge | Hacked Cesium-ion Thruster | -2/Protoforge | Hacked Lgt. Quantum Reactor | -2/Protoforge | Hacked Alien Tech Used ----------------- Sigix Broadsword Achievements -------------- None Challenges ------------ None Game ------ Seed SupersonicShadeProtomatter Manual? 0 Play Time 01:49:33 Cumulative 422.4 hours Start 2025.11.20 @ 10:16:29 End 2025.11.20 @ 12:11:43 Sessions 1 Manual Loads 0 Difficulty Rogue Special Mode None Game No. 391 Rogue 391 Adventurer 0 Explorer 0 Win Type - Total 3 Types 2/1/0/0/0/0/0/0/0/0 Lore% 85 Gallery% 84 Achievement% 64 Wizard Run 0 Options --------- Layout 1 ASCII 0 Keyboard 0 Movement Numpad Keybinds 0 Fullscreen 1 Font 24/Smallcaps Map View 50x35 Zoom Use 0% Tactical HUD 1 Map Filters NONE Filters NONE Steam 1 RUN: 72f7c514-6241-4f64-9557-910254ab7553